lending/lending_fUSD_20240928
["ID","MTS","AMOUNT","RATE_DAILY","PERIOD"]
[339366673,1727489440457,-1034.02237981,0.000119,2]
[339366687,1727489440927,-10111.10473322,0.000119,2]
[339366688,1727489440942,-3339.06586388,0.000119,2]
[339366697,1727489443310,-23983.86923699,0.000119,2]
[339366703,1727489446278,-358.25,0.000118,2]
[339366704,1727489446287,-1888.29853388,0.000119,2]
[339366705,1727489446299,-48658.44483055,0.000119,2]
[339366706,1727489446313,-1552.725,0.000119,2]
[339366707,1727489446428,-3154.1894036,0.000119,2]
[339366708,1727489446439,-2840.429836,0.000119,2]
[339366712,1727489459618,279.55,9.394e-05,2]
[339366713,1727489460714,171.93,9.059e-05,2]
[339366714,1727489496841,1344.2021,0.00011017,2]
[339366716,1727489606822,160.42,9.589e-05,2]
[339366717,1727489775323,333.39,0.00010833,2]
[339366718,1727489857623,158.98,0.00010822,2]
[339366719,1727489918265,250.0,0.00010846,2]
[339366720,1727489928727,154.75,0.00013918,30]
[339366721,1727489958975,150.0,0.00010959,2]
[339366722,1727489959051,250.0,0.00010959,2]
[339366723,1727490012294,158.04306313,0.0001103,2]
[339366724,1727490044593,241.78,0.00010849,2]
[339366725,1727490054941,479.15,8.931e-05,2]
[339366726,1727490103814,882.15,0.00010852,2]
[339366727,1727490126647,160.42,9.589e-05,2]
[339366756,1727490173778,23900.0,0.00010775,2]
[339366757,1727490180569,381.36,0.00010959,2]
[339366758,1727490225272,241.92,0.00010749,2]
[339366759,1727490255596,250.0,0.00010744,2]
[339366760,1727490268278,590.17,0.00010959,2]
[339366761,1727490278713,150.0,0.0001111,2]
[339366762,1727490290499,243.73,0.00010819,2]
[339366763,1727490329634,165.47438799,0.000101,2]
[339366764,1727490334616,229.70839506,0.0001,2]
[339366776,1727490540717,154.75,0.00013918,30]
[339366785,1727490617600,455.19,8.96e-05,2]
[339366786,1727490626414,434.32,0.0001111,2]
[339366795,1727490632590,-155.75,0.00011112,2]
[339366796,1727490632600,-300.0,0.00011114,2]
[339366797,1727490632609,-799.0,0.00011115,2]
[339366798,1727490632620,-799.0,0.00011115,2]
[339366799,1727490632631,-799.0,0.00011115,2]
[339366800,1727490632641,-799.0,0.00011115,2]
[339366801,1727490632650,-155.75,0.0001113,2]
[339366802,1727490632660,-758.08,0.00011131,2]
[339366803,1727490632671,-155.75,0.00011149,2]
[339366804,1727490632680,-500.0,0.00011164,2]
[339366805,1727490632690,-155.75,0.00011167,2]
[339366806,1727490632700,-455.19,0.00011223,2]
[339366807,1727490632711,-150.0,0.00011256,2]
[339366808,1727490632721,-150.99,0.00011257,2]
[339366809,1727490632731,-410.76,0.00011257,2]
[339366810,1727490632741,-999.99,0.00011257,2]
[339366811,1727490632750,-554.13,0.00011257,2]
[339366812,1727490632759,-3239.28,0.00011257,2]
[339366813,1727490632768,-2293.55,0.00011257,2]
[339366814,1727490632777,-160.04,0.00011257,2]
[339366815,1727490632788,-498.54,0.00011257,2]
[339366816,1727490632797,-13791.58,0.00011257,2]
[339366817,1727490632806,-164.02,0.00011297,2]
[339366818,1727490632815,-799.0,0.00011452,2]
[339366819,1727490632825,-150.0,0.0001149,2]
[339366820,1727490632834,-150.0,0.0001149,2]
[339366821,1727490632846,-152.23945971,0.0001149,2]
[339366822,1727490632856,-321.05453083,0.00011698,2]
[339366823,1727490632866,-1746.73631262,0.000118,2]
[339366824,1727490632877,-27337.31854111,0.000118,2]
[339366825,1727490632888,-580.89532217,0.000118,2]
[339366826,1727490632914,-3327.66179533,0.000118,2]
[339366827,1727490636816,441.07,0.00011093,2]
[339366830,1727490638427,-13654.34935,0.000118,2]
[339366831,1727490638791,-3535.65747877,0.000118,2]
[339366832,1727490638801,-963.3799,0.000118,2]
[339366833,1727490638812,-1445.9724,0.000118,2]
[339366834,1727490638822,-1612.9389,0.000118,2]
[339366835,1727490638833,-594.5154,0.000118,2]
[339366836,1727490638845,-891.6464,0.000118,2]
[339366837,1727490638855,-358.28,0.000118,2]
[339366838,1727490638864,-358.28,0.000118,2]
[339366839,1727490638874,-360.89,0.000118,2]
[339366840,1727490638883,-5895.2202939,0.000118,2]
[339366841,1727490638892,-716.26,0.000118,2]
[339366842,1727490638901,-500.0,0.00011804,2]
[339366843,1727490638910,-500.0,0.00011805,2]
[339366844,1727490638920,-2000.0,0.00011805,2]
[339366845,1727490638929,-500.0,0.00011805,2]
[339366846,1727490638938,-500.0,0.00011805,2]
[339366847,1727490638947,-191.246,0.00011881,2]
[339366849,1727490638957,-150.01,0.00011899,2]
[339366851,1727490638969,-19276.1558,0.00011899,2]
[339366853,1727490638978,-4799.72992475,0.000119,2]
[339366855,1727490638989,-1070.1255496,0.000119,2]
[339366858,1727490639000,-843.27,0.000119,2]
[339366886,1727490640069,179.51,0.00010959,2]
[339366887,1727490640613,-1452.25846956,0.000119,2]
[339366888,1727490640625,-2413.217851,0.000119,2]
[339366889,1727490640636,-4047.70249835,0.000119,2]
[339366890,1727490640647,-662.26330163,0.000119,2]
[339366891,1727490640797,-7204.73418816,0.000119,2]
[339366892,1727490643521,-154.58863686,0.00011899,2]
[339366893,1727490643531,-343.09220575,0.000119,2]
[339366899,1727490643687,-350.0,0.000119,2]
[339366900,1727490643698,-301.25385499,0.000119,2]
[339366901,1727490643843,-39177.31582248,0.000119,2]
[339366902,1727490643856,-2045.17523373,0.000119,2]
[339366903,1727490643867,-358.28,0.000119,2]
[339366904,1727490643876,-151.0,0.000119,2]
[339366905,1727490643886,-358.28,0.000119,2]
[339366906,1727490643897,-358.28,0.000119,2]
[339366907,1727490643907,-155.3,0.000119,2]
[339366908,1727490643917,-358.17,0.000119,2]
[339366909,1727490643927,-158.923244,0.000119,2]
[339366910,1727490643937,-358.25,0.000119,2]
[339366911,1727490643947,-842.79,0.000119,2]
[339366912,1727490643957,-361.18,0.000119,2]
[339366913,1727490643968,-5895.22029384,0.00011922,2]
[339366914,1727490643977,-2500.0,0.00011933,2]
[339366915,1727490643988,-1000.0,0.00011944,2]
[339366916,1727490643997,-2745.1818,0.00011973,2]
[339366917,1727490644007,-358.25,0.00012,2]
[339366918,1727490644017,-358.25,0.00012,2]
[339366919,1727490644026,-358.25,0.00012,2]
[339366920,1727490644039,-358.25,0.00012,2]
[339366921,1727490644051,-358.25,0.00012,2]
[339366922,1727490644062,-158.84,0.00012,2]
[339366923,1727490644071,-358.28,0.00012,2]
[339366924,1727490644081,-922.2137608,0.00012,2]
[339366925,1727490644091,-305.993598,0.00012029,2]
[339366926,1727490644100,-160.92,0.00012033,2]
[339366927,1727490644109,-500.0,0.00012043,2]
[339366928,1727490644118,-151.0,0.00012044,2]
[339366929,1727490644127,-5895.22029384,0.00012044,2]
[339366930,1727490644137,-180.0,0.00012055,2]
[339366931,1727490644146,-799.0,0.00012055,2]
[339366932,1727490644156,-2852.17467506,0.00012058,2]
[339366933,1727490644165,-31537.83248971,0.00012083,2]
[339366936,1727490646665,-150.0,0.00012,2]
[339366937,1727490646675,-8389.47580171,0.00012083,2]
[339366939,1727490726295,160.42,9.589e-05,2]
[339366940,1727490928608,1050.0,0.00011,2]
[339366952,1727491133744,327.62,0.00010959,2]
[339366953,1727491144830,273.02,0.00010959,2]
[339366954,1727491155407,227.52,0.00010959,2]
[339366955,1727491166077,189.6,0.00010959,2]
[339366956,1727491179858,220.53,0.00011062,2]
[339366957,1727491197447,790.01,0.00010959,2]
[339366958,1727491197942,555.0264,0.00011079,2]
[339366959,1727491274521,500.0,0.00011,2]
[339366960,1727491281098,250.0,0.00011069,2]
[339366961,1727491285533,5077.37320879,0.00015,30]
[339366962,1727491292410,250.0,0.00011067,2]
[339366963,1727491308068,150.0,0.00011067,2]
[339366964,1727491316974,157.07,0.00010959,2]
[339366966,1727491332496,160.42,9.589e-05,2]
[339366967,1727491468757,266.71,0.00011069,2]
[339366968,1727491507999,603.8,9.103e-05,2]
[339366969,1727491515328,250.0,0.00010981,2]
[339366970,1727491538917,275.0,0.00011079,2]
[339366971,1727491540913,1000.0,0.00010981,2]
[339366972,1727491553772,500.0,0.00011079,2]
[339366973,1727491554100,500.0,0.00011079,2]
[339366976,1727491627504,23900.0,0.00010982,2]
[339367000,1727491808922,220.53,0.00011022,2]
[339367010,1727491831671,-799.0,0.00011112,2]
[339367011,1727491831683,-901.05534752,0.00011112,2]
[339367012,1727491831692,-500.0,0.00011164,2]
[339367014,1727491831701,-175.62,0.00011169,2]
[339367015,1727491831710,-172.8,0.00011187,2]
[339367016,1727491831720,-175.62,0.00011225,2]
[339367017,1727491831729,-603.8,0.00011367,2]
[339367018,1727491831738,-799.0,0.00011451,2]
[339367019,1727491831746,-176.80488,0.0001149,2]
[339367020,1727491831756,-150.0,0.0001149,2]
[339367021,1727491831764,-150.0,0.00011781,2]
[339367022,1727491831774,-1096.03,0.00011791,2]
[339367023,1727491831783,-300.0,0.00011791,2]
[339367024,1727491831792,-329.9,0.00011792,2]
[339367025,1727491831801,-299.99,0.00011792,2]
[339367026,1727491831810,-499.99,0.00011792,2]
[339367027,1727491831818,-198.26,0.00011792,2]
[339367028,1727491831827,-350.4679521,0.00011799,2]
[339367029,1727491831837,-861.936758,0.000118,2]
[339367030,1727491831846,-857.94,0.000118,2]
[339367031,1727491831854,-9999.99,0.00011821,2]
[339367032,1727491831863,-150.0,0.00011821,2]
[339367033,1727491831872,-1000.0,0.00011821,2]
[339367034,1727491831881,-41694.28067952,0.00011822,2]
[339367035,1727491831892,-1152.45391395,0.00011822,2]
[339367036,1727491831904,-299.99,0.00011822,2]
[339367037,1727491831922,-2203.60884502,0.00011822,2]
[339367038,1727491832034,-9847.76992471,0.00011822,2]
[339367040,1727491832045,-3312.75,0.00011822,2]
[339367041,1727491832056,-17669.9774368,0.00011822,2]
[339367042,1727491832065,-174.525149,0.00011881,2]
[339367043,1727491832074,-221.845358,0.00011881,2]
[339367044,1727491832083,-4292.893,0.00011983,2]
[339367045,1727491832093,-5779.88728394,0.00011983,2]
[339367046,1727491832102,-3613.1808,0.00011983,2]
[339367047,1727491832111,-914.8256,0.00011983,2]
[339367048,1727491832120,-500.0,0.00011985,2]
[339367049,1727491832130,-500.0,0.00011986,2]
[339367050,1727491832139,-2000.0,0.00011986,2]
[339367051,1727491832149,-500.0,0.00011986,2]
[339367052,1727491832160,-500.0,0.00011986,2]
[339367053,1727491832169,-500.0,0.00011986,2]
[339367054,1727491832179,-300.0,0.00012,2]
[339367055,1727491832188,-1000.0,0.00012023,2]
[339367056,1727491832197,-1000.0,0.00012023,2]
[339367057,1727491832207,-1000.0,0.00012023,2]
[339367058,1727491832216,-1000.0,0.00012023,2]
[339367059,1727491832225,-1000.0,0.00012023,2]
[339367060,1727491832234,-1000.0,0.00012023,2]
[339367061,1727491832244,-1000.0,0.00012023,2]
[339367062,1727491832253,-603.12938577,0.00012023,2]
[339367063,1727491832264,-396.87061423,0.00012023,2]
[339367064,1727491832273,-1000.0,0.00012023,2]
[339367065,1727491832282,-557.0299,0.00012023,2]
[339367066,1727491832291,-221.845358,0.00012029,2]
[339367067,1727491832300,-5761.87267558,0.0001205,2]
[339367068,1727491832309,-799.0,0.00012054,2]
[339367069,1727491832319,-151.0,0.00012076,2]
[339367070,1727491832328,-151.0,0.00012076,2]
[339367071,1727491832338,-13952.1165,0.00012077,2]
[339367072,1727491832348,-500.0,0.00012082,2]
[339367073,1727491832357,-500.0,0.00012082,2]
[339367074,1727491832366,-25864.49648003,0.00012083,2]
[339367075,1727491832375,-151.0,0.00012083,2]
[339367076,1727491832385,-151.0,0.00012083,2]
[339367077,1727491832394,-5779.88728389,0.00012085,2]
[339367078,1727491832403,-1014.0,0.000121,2]
[339367079,1727491832412,-10233.7310028,0.00012101,2]
[339367080,1727491832421,-209.837,0.00012129,2]
[339367081,1727491832430,-418.478,0.00012129,2]
[339367082,1727491832439,-160.92,0.00012153,2]
[339367083,1727491832448,-243.73,0.00012171,2]
[339367084,1727491832457,-180.0,0.00012174,2]
[339367085,1727491832467,-221.845358,0.00012178,2]
[339367086,1727491832476,-158.141,0.00012179,2]
[339367087,1727491832485,-5779.88728389,0.00012187,2]
[339367088,1727491832494,-3160.553,0.00012189,2]
[339367089,1727491832503,-3154.8562,0.00012228,2]
[339367090,1727491832513,-7500.0,0.00012229,2]
[339367091,1727491832522,-151.0,0.00012229,2]
[339367092,1727491832532,-336.78232329,0.00012229,2]
[339367093,1727491832543,-151.5126436,0.00012229,2]
[339367094,1727491832552,-156.0,0.0001224,2]
[339367095,1727491832562,-3099.70368853,0.00012289,2]
[339367096,1727491832575,-2680.18359536,0.00012289,2]
[339367097,1727491832584,-1251.47035577,0.000123,2]
[339367098,1727491832594,-152.34,0.00012319,2]
[339367099,1727491832603,-150.0,0.00012325,2]
[339367100,1727491832612,-150.0,0.00012326,2]
[339367101,1727491832622,-24439.17800445,0.00012326,2]
[339367102,1727491832631,-165.4714258,0.00012326,2]
[339367103,1727491832641,-221.845358,0.00012326,2]
[339367104,1727491832650,-150.0,0.00012327,2]
[339367105,1727491832659,-150.0,0.00012328,2]
[339367106,1727491832669,-500.0,0.00012328,2]
[339367107,1727491832682,-422.00306701,0.00012328,2]
[339367108,1727491832691,-500.0,0.00012328,2]
[339367109,1727491832700,-500.0,0.00012328,2]
[339367110,1727491832709,-500.0,0.00012328,2]
[339367111,1727491832718,-527.80553883,0.00012328,2]
[339367112,1727491832728,-151.0,0.00012328,2]
[339367113,1727491832738,-500.0,0.00012328,2]
[339367114,1727491832748,-500.0,0.00012328,2]
[339367115,1727491832757,-444.35122996,0.00012328,2]
[339367116,1727491832766,-152627.97765244,0.00012328,2]
[339367119,1727491837788,-158.142,0.00012124,2]
[339367120,1727491837797,-402.36365751,0.00012328,2]
[339367123,1727491838282,-1226.21279237,0.00012328,2]
[339367126,1727491839774,-6630.2,0.00012328,2]
[339367127,1727491839787,-780.16118851,0.00012328,2]
[339367128,1727491839798,-4503.58804637,0.00012328,2]
[339367129,1727491839810,-2320.11035396,0.00012328,2]
[339367130,1727491839821,-540.5,0.00012328,2]
[339367159,1727491845710,-151.51264353,0.00012325,2]
[339367160,1727491845720,-11425.93735647,0.00012328,2]
[339367161,1727491845871,-1185.01910256,0.00012328,2]
[339367162,1727491845883,-704.47681064,0.00012328,2]
[339367165,1727491850713,177.4,0.00010959,2]
[339367167,1727491892708,160.42,9.589e-05,2]
[339367168,1727491917918,174.15,9.261e-05,2]
[339367170,1727491923132,322.118,0.00011012,2]
[339367172,1727491986067,4191.2018,0.00011012,2]
[339367173,1727492144096,734.56,9.399e-05,2]
[339367174,1727492253896,746.639506,0.00011108,2]
[339367175,1727492498826,174.13,8.969e-05,2]
[339367176,1727492510902,285.85,0.00010959,2]
[339367177,1727492577762,500.0,0.00011,2]
[339367178,1727492697591,789.13,9.254e-05,2]
[339367179,1727492721721,15743.75,0.00011098,2]
[339367180,1727492725193,332.58,0.00010959,2]
[339367182,1727492735751,755.89,0.00010959,2]
[339367183,1727492739766,1050.0,0.00011,2]
[339367242,1727493022634,700.0,0.00010068,2]
[339367249,1727493032254,-300.0,0.00011163,2]
[339367250,1727493032263,-14.83970149,0.00011164,2]
[339367251,1727493032275,-485.16029851,0.00011164,2]
[339367252,1727493032286,-500.0,0.00011164,2]
[339367253,1727493032295,-500.0,0.00011164,2]
[339367254,1727493032305,-500.0,0.00011164,2]
[339367255,1727493032315,-500.0,0.00011164,2]
[339367256,1727493032324,-500.0,0.00011164,2]
[339367257,1727493032333,-500.0,0.00011164,2]
[339367258,1727493032342,-429.19013201,0.00011164,2]
[339367259,1727493032352,-172.8,0.00011175,2]
[339367260,1727493032361,-250.0,0.00011177,2]
[339367261,1727493032370,-250.0,0.00011196,2]
[339367262,1727493032380,-250.0,0.00011214,2]
[339367263,1727493032389,-277.75,0.00011236,2]
[339367264,1727493032399,-173.17,0.0001125,2]
[339367265,1727493032408,-1000.0,0.00011306,2]
[339367266,1727493032418,-150.99,0.00011306,2]
[339367267,1727493032427,-544.25,0.00011319,2]
[339367268,1727493032437,-150.0,0.00011396,2]
[339367269,1727493032446,-299.99,0.00011397,2]
[339367270,1727493032456,-2419.54,0.00011397,2]
[339367271,1727493032465,-338.43,0.00011398,2]
[339367272,1727493032475,-700.0,0.00011438,2]
[339367273,1727493032488,-162.05154868,0.0001149,2]
[339367274,1727493032498,-789.13,0.00011518,2]
[339367275,1727493032507,-343.205016,0.000118,2]
[339367276,1727493032516,-1000.0,0.00011985,2]
[339367277,1727493032528,-76.3430048,0.00011999,2]
[339367284,1727493039831,-500.0,0.00011164,2]
[339367285,1727493039840,-4316.61786848,0.00011999,2]
[339367286,1727493039852,-681.26488617,0.00011999,2]
[339367287,1727493040014,-266.420092,0.00011999,2]
[339367288,1727493040027,-1991.23853024,0.00011999,2]
[339367289,1727493040996,-1149.96,0.00011999,2]
[339367296,1727493043042,-557.16111004,0.00011999,2]
[339367297,1727493043054,-7492.55716726,0.00011999,2]
[339367298,1727493043063,-199.52,0.00011999,2]
[339367299,1727493043073,-4593.5154,0.00012009,2]
[339367300,1727493043082,-344.40743276,0.00012009,2]
[339367301,1727493043093,-7981.01020727,0.00012009,2]
[339367302,1727493043103,-1979.18188074,0.00012009,2]
[339367303,1727493043114,-303.6900329,0.00012009,2]
[339367304,1727493043126,-259.4880914,0.00012009,2]
[339367316,1727493045902,-277.75,0.0001133,2]
[339367317,1727493045913,-9875.22,0.00012009,2]
[339367318,1727493046071,-4963.89255493,0.00012009,2]
[339367319,1727493046080,-349.42260879,0.00012162,2]
[339367320,1727493046090,-199.52,0.000122,2]
[339367321,1727493046099,-199.52,0.000122,2]
[339367322,1727493046108,-180.0,0.00012205,2]
[339367323,1727493046117,-23169.91249658,0.0001221,2]
[339367324,1727493046127,-3467.93237037,0.00012221,2]
[339367325,1727493046136,-151.51264353,0.00012229,2]
[339367326,1727493046145,-4381.5004,0.00012229,2]
[339367327,1727493046154,-512.9073,0.00012229,2]
[339367328,1727493046163,-500.0,0.00012229,2]
[339367329,1727493046172,-2000.0,0.00012229,2]
[339367330,1727493046181,-500.0,0.00012229,2]
[339367331,1727493046191,-500.0,0.00012229,2]
[339367332,1727493046200,-1000.0,0.00012266,2]
[339367333,1727493046209,-1000.0,0.00012266,2]
[339367334,1727493046218,-1000.0,0.00012266,2]
[339367335,1727493046227,-1000.0,0.00012266,2]
[339367336,1727493046237,-1000.0,0.00012266,2]
[339367337,1727493046246,-1000.0,0.00012266,2]
[339367338,1727493046254,-1000.0,0.00012266,2]
[339367339,1727493046263,-1000.0,0.00012266,2]
[339367340,1727493046272,-1000.0,0.00012266,2]
[339367341,1727493046282,-596.4465,0.00012266,2]
[339367342,1727493046292,-339.6418304,0.00012278,2]
[339367343,1727493046301,-199.52,0.00012286,2]
[339367344,1727493046310,-3467.93237033,0.00012296,2]
[339367345,1727493046319,-1250.0,0.000123,2]
[339367346,1727493046328,-199.52,0.00012311,2]
[339367347,1727493046338,-199.52,0.00012311,2]
[339367348,1727493046347,-491.16841266,0.00012313,2]
[339367349,1727493046356,-199.52,0.00012319,2]
[339367350,1727493046365,-199.52,0.00012319,2]
[339367351,1727493046374,-199.52,0.00012319,2]
[339367352,1727493046383,-199.52,0.00012319,2]
[339367353,1727493046562,-16184.9500642,0.00012321,2]
[339367354,1727493046572,-11980.1183605,0.00012321,2]
[339367355,1727493046581,-1079.9092341,0.00012321,2]
[339367356,1727493046590,-4463.4503463,0.00012321,2]
[339367357,1727493046599,-1000.0,0.00012327,2]
[339367358,1727493046608,-2000.0,0.00012328,2]
[339367359,1727493046617,-200.0,0.00012328,2]
[339367360,1727493046626,-200.0,0.00012328,2]
[339367361,1727493046636,-200.0,0.00012328,2]
[339367362,1727493046645,-200.0,0.00012328,2]
[339367363,1727493046654,-637.0,0.00012329,2]
[339367364,1727493046663,-151.0,0.00012329,2]
[339367365,1727493046673,-151.475551,0.00012329,2]
[339367366,1727493046682,-151.123905,0.00012329,2]
[339367367,1727493046691,-151.55098,0.00012329,2]
[339367368,1727493046700,-169.5,0.00012329,2]
[339367369,1727493046710,-5812.85,0.00012329,2]
[339367370,1727493046719,-151.380811,0.00012329,2]
[339367371,1727493046729,-151.0,0.00012329,2]
[339367372,1727493046738,-151.0,0.00012329,2]
[339367373,1727493046747,-151.570163,0.00012329,2]
[339367374,1727493046756,-151.0,0.00012329,2]
[339367375,1727493046765,-151.0,0.00012329,2]
[339367376,1727493046774,-151.0,0.00012329,2]
[339367377,1727493046783,-151.0,0.00012329,2]
[339367378,1727493046792,-265.526202,0.00012329,2]
[339367379,1727493046801,-151.0,0.00012329,2]
[339367380,1727493046811,-151.0,0.00012329,2]
[339367381,1727493046820,-151.0,0.00012329,2]
[339367382,1727493046830,-213.404266,0.00012329,2]
[339367383,1727493046840,-151.0,0.00012329,2]
[339367384,1727493046849,-151.0,0.00012329,2]
[339367385,1727493046858,-151.0,0.00012329,2]
[339367386,1727493046867,-151.0,0.00012329,2]
[339367387,1727493046876,-151.0,0.00012329,2]
[339367388,1727493046885,-151.394747,0.00012329,2]
[339367389,1727493046896,-151.0,0.00012329,2]
[339367390,1727493046906,-151.0,0.00012329,2]
[339367391,1727493046915,-151.0,0.00012329,2]
[339367392,1727493046925,-151.0,0.00012329,2]
[339367393,1727493046935,-151.605852,0.00012329,2]
[339367394,1727493046943,-151.0,0.00012329,2]
[339367395,1727493046953,-766.985698,0.00012329,2]
[339367396,1727493046962,-766.985698,0.00012329,2]
[339367397,1727493046971,-766.985698,0.00012329,2]
[339367398,1727493046980,-766.985698,0.00012329,2]
[339367399,1727493046990,-766.985698,0.00012329,2]
[339367400,1727493047000,-766.985698,0.00012329,2]
[339367401,1727493047009,-766.985698,0.00012329,2]
[339367402,1727493047019,-766.985698,0.00012329,2]
[339367403,1727493047030,-766.985698,0.00012329,2]
[339367404,1727493047040,-766.985698,0.00012329,2]
[339367405,1727493047050,-244.343307,0.00012329,2]
[339367406,1727493047058,-244.343307,0.00012329,2]
[339367407,1727493047067,-244.343307,0.00012329,2]
[339367408,1727493047076,-244.343307,0.00012329,2]
[339367409,1727493047086,-244.343307,0.00012329,2]
[339367410,1727493047097,-151.0,0.00012329,2]
[339367411,1727493047107,-151.0,0.00012329,2]
[339367412,1727493047119,-151.0,0.00012329,2]
[339367413,1727493047130,-151.0,0.00012329,2]
[339367414,1727493047142,-161.353835,0.00012329,2]
[339367415,1727493047153,-161.353835,0.00012329,2]
[339367416,1727493047162,-161.353835,0.00012329,2]
[339367417,1727493047171,-161.353835,0.00012329,2]
[339367418,1727493047180,-161.353835,0.00012329,2]
[339367419,1727493047189,-151.0,0.00012329,2]
[339367420,1727493047198,-151.0,0.00012329,2]
[339367421,1727493047208,-151.0,0.00012329,2]
[339367422,1727493047218,-151.0,0.00012329,2]
[339367423,1727493047229,-161.353835,0.00012329,2]
[339367424,1727493047238,-161.353835,0.00012329,2]
[339367425,1727493047247,-161.353835,0.00012329,2]
[339367426,1727493047256,-161.353835,0.00012329,2]
[339367427,1727493047265,-161.353835,0.00012329,2]
[339367428,1727493047275,-151.0,0.00012329,2]
[339367429,1727493047284,-151.0,0.00012329,2]
[339367430,1727493047294,-151.0,0.00012329,2]
[339367431,1727493047302,-151.0,0.00012329,2]
[339367432,1727493047311,-160.911008,0.00012329,2]
[339367433,1727493047322,-151.0,0.00012329,2]
[339367434,1727493047332,-151.0,0.00012329,2]
[339367435,1727493047342,-151.0,0.00012329,2]
[339367436,1727493047352,-151.0,0.00012329,2]
[339367437,1727493047361,-275.61851,0.00012329,2]
[339367438,1727493047370,-151.0,0.00012329,2]
[339367439,1727493047379,-151.0,0.00012329,2]
[339367440,1727493047389,-151.0,0.00012329,2]
[339367441,1727493047398,-151.0,0.00012329,2]
[339367442,1727493047407,-151.0,0.00012329,2]
[339367443,1727493047416,-189.176142,0.00012329,2]
[339367444,1727493047425,-189.176142,0.00012329,2]
[339367445,1727493047434,-189.176142,0.00012329,2]
[339367446,1727493047444,-189.176142,0.00012329,2]
[339367447,1727493047453,-189.176142,0.00012329,2]
[339367448,1727493047462,-151.0,0.00012329,2]
[339367449,1727493047471,-151.0,0.00012329,2]
[339367450,1727493047480,-151.0,0.00012329,2]
[339367451,1727493047492,-151.0,0.00012329,2]
[339367452,1727493047501,-189.176142,0.00012329,2]
[339367453,1727493047512,-286.688997,0.00012329,2]
[339367454,1727493047523,-189.176142,0.00012329,2]
[339367455,1727493047535,-189.176142,0.00012329,2]
[339367456,1727493047545,-189.176142,0.00012329,2]
[339367457,1727493047555,-189.176142,0.00012329,2]
[339367458,1727493047565,-426.993758,0.00012329,2]
[339367459,1727493047575,-426.993758,0.00012329,2]
[339367460,1727493047584,-426.993758,0.00012329,2]
[339367461,1727493047593,-151.0,0.00012329,2]
[339367462,1727493047603,-426.993758,0.00012329,2]
[339367463,1727493047613,-151.0,0.00012329,2]
[339367464,1727493047622,-426.993758,0.00012329,2]
[339367465,1727493047631,-151.0,0.00012329,2]
[339367466,1727493047641,-151.0,0.00012329,2]
[339367467,1727493047650,-426.993758,0.00012329,2]
[339367468,1727493047660,-426.993758,0.00012329,2]
[339367469,1727493047669,-426.993758,0.00012329,2]
[339367470,1727493047679,-151.0,0.00012329,2]
[339367471,1727493047687,-151.0,0.00012329,2]
[339367472,1727493047697,-151.0,0.00012329,2]
[339367473,1727493047706,-426.993758,0.00012329,2]
[339367474,1727493047716,-151.0,0.00012329,2]
[339367475,1727493047725,-426.993758,0.00012329,2]